Cogmind - Beta 15 @@@ ROGUE MODE // 2025.05.31 @ 20:19:26 Player: Figgis Result: Destroyed by EI-B97(R) with Subdweller Machine Gun Performance ------------- Evolutions (0) 0 Regions Visited (2) 400 Robots Destroyed (19) 95 Value Destroyed (387) 387 Prototype IDs (3) 60 Alien Tech Used (0) 0 Bonus (0) 0 TOTAL SCORE: 942 Bonus ------- None Cogmind --------- Core Integrity 0/250 Matter 170/300 Energy 100/100 System Corruption 0% Temperature Cool (0) Movement Walking (190) Ox1 Location -10/Subcaves Parts ------- > --- POWER (1) -------- (None) > --- PROPULSION (2) --- Aluminum Leg > --- UTILITY (2) ------ Large Storage Unit > --- WEAPON (2) ------- (None) > --- INVENTORY (15) --- Ion Engine Aluminum Leg Aluminum Leg Makeshift Flight Unit Assault Rifle Improved Assault Rifle Improved Assault Rifle Peak State ------------ > --- POWER ------------ Light Ion Engine > --- PROPULSION ------- Aluminum Leg Aluminum Leg > --- UTILITY ---------- Large Storage Unit > --- WEAPON ----------- Improved Assault Rifle Improved Assault Rifle > --- INVENTORY -------- Ion Engine Aluminum Leg Aluminum Leg Aluminum Leg Aluminum Leg Aluminum Leg Assault Rifle Improved Assault Rifle [Rating: 11] Favorites ----------- Power Light Ion Engine Engine Light Ion Engine Propulsion Aluminum Leg Leg Aluminum Leg Utility Large Storage Unit Storage Large Storage Unit Weapon Improved Assault Rifle Ballistic Gun Improved Assault Rifle Ballistic Cannon Battle Cannon Build | -11 -10 -10 ------- Run | Yrd Mat Sub Slots Evolved . | . . . Power . | . . . Propulsion . | . . . Utility . | . . . Weapon . | . . . Parts Attached 13 | 3 5 5 Power 2 | 1 . 1 Engine 2 | 1 . 1 Core . | . . . Reactor . | . . . Propulsion 5 | 2 . 3 Treads . | . . . Leg 5 | 2 . 3 Wheel . | . . . Hover . | . . . Flight . | . . . Utility 1 | . 1 . Device . | . . . Storage 1 | . 1 . Processor . | . . . Hackware . | . . . Protection . | . . . Artifact . | . . . Weapon 5 | . 4 1 Energy Gun . | . . . Energy Cannon . | . . . Ballistic Gun 4 | . 4 . Ballistic Cannon 1 | . . 1 Launcher . | . . . Special Weapon . | . . . Impact Weapon . | . . . Slashing Weapon . | . . . Piercing Weapon . | . . . Special Melee Weapon . | . . . Unidentified Prototypes 1 | . 1 . Parts Lost 8 | . . 8 Power 2 | . . 2 Propulsion 4 | . . 4 Utility . | . . . Weapon 2 | . . 2 Highest Loss Streak 6 | . . 6 To Critical Strikes 1 | . . 1 Average Backups 8 | 2 5 10 Power 1 | . 1 1 Propulsion 4 | . 2 5 Utility . | . . . Weapon 2 | 1 1 2 Tool/Special . | . . . Unused Backups 7 | . 2 5 Power 1 | . . 1 Propulsion 3 | . . 3 Utility 1 | . 1 . Weapon 2 | . 1 1 Tool/Special . | . . . Average Slot Usage (%) 84 | . 83 84 Engine 13 | . 14 13 Leg 27 | . 28 27 Storage 13 | . 13 14 Ballistic Gun 22 | . 27 18 Ballistic Cannon 5 | . . 9 Peak Build Rating 11 | 3 11 11 Average Rating 9 | 1 9 10 On Entrance 4 | . 3 11 Naked Turns . | . . . Heaviest Build 31 | 3 29 31 Greatest Support 20 | 3 20 20 Greatest Overweight (x) 2 | . 1 2 Average Overweight (x) . | . . 1 Largest Inventory Capacity 15 | 5 15 15 Average Capacity 14 | 5 14 15 Most Carried 11 | 5 9 11 Average Carried 8 | 3 5 10 Final Capacity 15 | 5 15 15 Final Carried 9 | 5 9 7 Class Distribution -------------------- 100% | Mutant Dominant Class ---------------- Mutant | -10/Materials Mutant | -10/Subcaves Resources | -11 -10 -10 ----------- Run | Yrd Mat Sub Matter Collected 529 | 209 257 63 Remotely . | . . . Salvage Created 421 | . 351 70 Parts 34 | . 24 10 Haulers Intercepted . | . . . Recyclers Shooed . | . . . Parts Field Recycled . | . . . Retrieved Matter . | . . . Parts Self-Destructed 15 | . . 15 Prevented . | . . . Kills | -11 -10 -10 ------- Run | Yrd Mat Sub Combat Hostiles Destroyed 17 | . 13 4 Guns 13 | . 13 . Cannons 4 | . . 4 Classes Destroyed 3 | . 2 1 Turret 2 | . . 2 Swarmer 11 | . 7 4 Grunt 6 | . 6 . Best Kill Streak 5 | . 4 5 Combat Bots Only 4 | . 4 4 Max Kills in Single Turn 2 | . 2 1 Gunslinging 1 | . 1 . Exploded . | . . . Melee . | . . . Uniques/NPCs Destroyed . | . . . Combat | -11 -10 -10 -------- Run | Yrd Mat Sub Hostile Shots Fired 147 | . 60 87 Missed 48 | . 20 28 Hits 99 | . 40 59 Projectile 99 | . 40 59 AOE 7 | . . 7 Critical Strikes 1 | . . 1 Damage Taken 1081 | . 369 712 Core 258 | . 88 170 Absorbed by Shields . | . . . Core Remaining (%) 100 | 100 . . Volleys Fired 60 | . 31 29 Largest 2 | . 2 2 Hottest 56 | . 46 56 Shots Fired 105 | . 62 43 Gun 78 | . 62 16 Cannon 27 | . . 27 Launcher . | . . . Special . | . . . Kinetic 105 | . 62 43 Thermal . | . . . Explosive . | . . . Electromagnetic . | . . . Robot Hit Streak 14 | . 14 9 Robot Miss Streak 4 | . 1 4 Penetration Max . | . . . Secondary Targets 2 | . 2 . Max Gunslinging Chain 1 | . 1 . Shots Hit Robots 63 | . 49 14 Core Hits 23 | . 16 7 Critical Kills . | . . . Critical Parts Destroyed 1 | . 1 . Critical Strikes 1 | . 1 . Destroy 1 | . 1 . Melee Attacks . | . . . Impact . | . . . Slashing . | . . . Piercing . | . . . Sneak Attacks . | . . . Combat Hostiles . | . . . Follow-up Attacks . | . . . Damage Inflicted 1069 | . 759 310 Guns 859 | . 759 100 Cannons 210 | . . 210 Explosions . | . . . Melee . | . . . Ramming . | . . . Kinetic 1069 | . 759 310 Thermal . | . . . Explosive . | . . . Electromagnetic . | . . . Impact . | . . . Slashing . | . . . Piercing . | . . . Highest Corruption . | . . . Average Corruption . | . . . Corruption Purged . | . . . Corruption Blocked . | . . . Overload Shots . | . . . Overflow Damage 8 | . . 8 Projectiles 8 | . . 8 Explosions . | . . . Melee . | . . . Knockbacks 1 | . . 1 Impact . | . . . Kinetic 1 | . . 1 Secondary . | . . . Self-Inflicted Damage . | . . . Shots . | . . . Rammed . | . . . Targets Rammed . | . . . Kicked . | . . . Crushed . | . . . Highest Temperature 4 | . 4 . Average Temperature 1 | . 1 . Received Heat Transfer 240 | . 96 144 Siege Activations . | . . . Martial Activations . | . . . Shielding Activations . | . . . Robots Disrupted . | . . . Combat Hostiles . | . . . Robots Corrupted . | . . . Combat Hostiles . | . . . Parts Fried . | . . . Impact Corruptions . | . . . Robots Melted . | . . . Combat Hostiles . | . . . Parts Melted . | . . . Heat Transferred . | . . . Parts Sabotaged . | . . . Parts Stolen . | . . . Parts Stripped . | . . . Power Chain Reactions . | . . . Alert | -11 -10 -10 ------- Run | Yrd Mat Sub Maximum Alert Level . | . . . Low Security (%) 100 | 100 100 . Level 1 . | . . . Level 2 . | . . . Level 3 . | . . . Level 4 . | . . . Level 5 . | . . . High Security . | . . . Max Security . | . . . Peak Influence 179 | . 179 . Initial . | . . . Average 94 | . 99 . Influence Increases 550 | . 370 180 Destroy 0b10 Robot/C 380 | . 260 120 Destroy Leader 50 | . 50 . Successful Hack 15 | . 15 . Lose Combat Pursuer 105 | . 45 60 Influence Decreases 514 | . 218 296 Entered New Map 74 | . . 74 Time Decay 360 | . 218 142 Lost Part 80 | . . 80 Squads Dispatched 2 | . 2 . Investigation 1 | . 1 . Extermination . | . . . Reinforcement 1 | . 1 . Assault . | . . . Garrison . | . . . Intercept . | . . . Searches Triggered . | . . . Construction Impeded . | . . . Haulers Reinforced . | . . . Active Scanning Responses . | . . . Cargo Convoy Interrupts . | . . . Stealth | -11 -10 -10 --------- Run | Yrd Mat Sub Distress Signals . | . . . Communications Jammed . | . . . Distress Signals . | . . . Times Spotted 31 | . 19 12 Peak Tracking Total 5 | . 5 4 Tactical Retreats 6 | . 3 3 Traps | -11 -10 -10 ------- Run | Yrd Mat Sub Traps Triggered 1 | . 1 . Indirectly . | . . . Trap Hack Attempts . | . . . Triggered . | . . . Disarmed . | . . . Reprogrammed . | . . . Reused . | . . . Traps Extracted . | . . . Installed . | . . . Triggered . | . . . Machines | -11 -10 -10 ---------- Run | Yrd Mat Sub Machines Disabled 2 | . . 2 Max in Single Turn 1 | . . 1 Machines Repaired . | . . . Machines Dismantled . | . . . Machines Sabotaged . | . . . Overloaded Fab Kills . | . . . Hacking | -11 -10 -10 --------- Run | Yrd Mat Sub Machines Accessed 5 | . 4 1 Terminals 4 | . 4 . Fabricators . | . . . Repair Stations . | . . . Recycling Units . | . . . Scanalyzers . | . . . Garrison Access . | . . . Total Hacks 13 | . 9 4 Successful 7 | . 3 4 Failed 5 | . 5 . Catastrophic 2 | . 2 . Database Lockouts 1 | . 1 . Manual 4 | . 4 . Terminals 9 | . 9 . Fabricators . | . . . Repair Stations . | . . . Recycling Units . | . . . Scanalyzers . | . . . Garrison Access . | . . . Terminal Hacks 7 | . 3 4 Record 4 | . . 4 Robot Analysis 1 | . 1 . Prototype ID Bank 1 | . 1 . Locate Traps 1 | . 1 . Fabricator Hacks . | . . . Repair Station Hacks . | . . . Recycling Unit Hacks . | . . . Scanalyzer . | . . . Garrison Access Hacks . | . . . Unauthorized Hacks . | . . . Terminals . | . . . Fabricators . | . . . Repair Stations . | . . . Recycling Units . | . . . Scanalyzers . | . . . Garrison Access . | . . . Data Cores Recovered . | . . . Used . | . . . Hacking Detections 4 | . 4 . Full Trace Events . | . . . Feedback Events . | . . . Feedback Blocked . | . . . Robot Schematics Acquired . | . . . Robots Built . | . . . Authchips . | . . . Time . | . . . Total Robot Build Rating . | . . . Part Schematics Acquired . | . . . Parts Built . | . . . Authchips . | . . . Time . | . . . Total Part Build Rating . | . . . Parts Repaired . | . . . Time . | . . . Parts Recycled . | . . . Recycled Matter . | . . . Retrieved Matter . | . . . Retrieved Components . | . . . Parts Scanalyzed . | . . . Part Schematics Acquired . | . . . Parts Damaged . | . . . Bothacking | -11 -10 -10 ------------ Run | Yrd Mat Sub Used RIF Installer . | . . . Robots Hacked . | . . . Non-combat . | . . . Combat . | . . . Robot Hacks Applied . | . . . Relay Couplers Released . | . . . Fabnet Peak Effective % . | . . . Robots Rewired . | . . . Allies Hacked . | . . . Hacks Repelled . | . . . Allies | -11 -10 -10 -------- Run | Yrd Mat Sub Total Allies . | . . . Largest Group . | . . . Highest-Rated Group . | . . . Highest-Rated Ally . | . . . Total Orders . | . . . Ally Attacks . | . . . Total Damage . | . . . Kills . | . . . Allies Corrupted . | . . . Allies Melted . | . . . Intel | -11 -10 -10 ------- Run | Yrd Mat Sub Active Infowar (turns) . | . . . Robot Analysis Total 1 | . 1 . Derelict Logs Recovered . | . . . Drone Launches . | . . . Drone Recoveries . | . . . Exploration | -11 -10 -10 ------------- Run | Yrd Mat Sub Turns Passed 1375 | 31 564 780 Spaces Moved 641 | 40 233 368 Core 49 | 40 9 . Treads . | . . . Legs 592 | . 224 368 Wheels . | . . . Hover . | . . . Flight . | . . . Fastest Speed 50 | 50 50 190 Average Speed 179 | 50 184 190 Slowest Speed 260 | 50 190 260 Overloaded Moves . | . . . Propulsion Burnouts . | . . . Robots Hopped . | . . . Potential Cave-ins . | . . . Cave-ins Triggered . | . . . Exploration Rate (%) 24 | 3 42 27 Regions Visited 2 Branch Regions 1 Pre-discovered Areas 3 | . . 3 Known Exits Taken . | . . . Unknown Exits Taken 2 | 1 1 . Scrap Searched 2 | . . 2 Spaces Dug . | . . . Terrain Destroyed . | . . . Melee . | . . . Projectile . | . . . AOE . | . . . Terrain Rammed . | . . . Walls Destroyed . | . . . Machines Disabled . | . . . Actions | -11 -10 -10 --------- Run | Yrd Mat Sub Total 759 | 49 306 404 Wait 26 | . 26 . Move 639 | 39 232 368 Hop . | . . . Pick Up 18 | 7 9 2 Fast Attach 2 | 1 1 . Attach 9 | 2 3 4 Detach . | . . . Swap 2 | . 1 1 Drop 3 | . 3 . Fire 60 | . 31 29 Melee . | . . . Ram . | . . . Kick . | . . . Crush . | . . . Escape Stasis . | . . . Rewire . | . . . Trap . | . . . Miscellaneous . | . . . Route ------- -11/Scrapyard -10/Materials (discovered 2 exits: [*Mat] / *Sub) -10/Subcaves (discovered 2 exits: [*Mat] / [*Rec]) History --------- Turn | Location | Event 2 | -11/Scrapyard | Met Revision 17 13 | -11/Scrapyard | Discovered new exit (range 16) 32 | -11/Scrapyard | Entered Materials 125 | -10/Materials | Central database locked down 292 | -10/Materials | Discovered new exit (range 11) 307 | -10/Materials | Build established: Mutant 562 | -10/Materials | Discovered new exit (range 7) 596 | -10/Materials | Entered Subcaves 897 | -10/Subcaves | Learned location of Zion (-6) 897 | -10/Subcaves | Met a Zionite searching for "candidates" 1080 | -10/Subcaves | Discovered new exit (range 14) 1190 | -10/Subcaves | Visited Clippyterm 1196 | -10/Subcaves | Learned location of Deep Caves (-6) 1196 | -10/Subcaves | Learned location of Section 7 (-2) 1226 | -10/Subcaves | Discovered new exit (range 14) 1256 | -10/Subcaves | Core integrity fell below 50% 1366 | -10/Subcaves | Ambushed by Subdweller buried in earth 1372 | -10/Subcaves | Core integrity fell below 20% 1376 | -10/Subcaves | Destroyed by EI-B97(R) with Subdweller Machine Gun Last Messages --------------- 01252_ Lgt. Assault Rifle fries itself beyond repair. 01261_ Autobeam Turret destroyed. 01264_ Acquired 11 matter. 01268_ Autobeam fries itself beyond repair. 01283_ Destroyed Autobeam. 01289_ Autobeam Turret destroyed. 01315_ Acquired 2 matter. 01319_ Acquired 6 matter. 01321_ Acquired 1 matter. 01326_ Acquired 19 matter. 01330_ Acquired 3 matter. 01332_ Acquired 1 matter. 01367_ XB-LML(R): "HIDIE!" 01367_ Aluminum Leg destroyed. 01367_ Machine disabled. 01370_ Battle Cannon destroyed. 01370_ Imp. Assault Rifle destroyed. 01370_ Critical hit (Destroy). 01370_ Aluminum Leg destroyed. 01371_ Ion Engine destroyed. Map ----- +----------------------------------------------------+ | ??????????????????????# #??????????????????? | | ??????????????????????## #??????????????????? | | ?????????????????#####?## ##?????????????????? | | ?????????????????#"""### ##????????????????? | | ?????????????????#"" ## ##???????????????? | | ?????????????????#"X ##??????????????? | | ?????????????????#"" ## ##?????????????? | | ?????????????????#"""## #?????????????? | | ?????????????????###### ## #?????????????? | | ??????????????????????## ### ##????????????? | | ???????????????????????#### ##???????????? | | ???????????????????????## #???????????? | | ???????????????????????#% % #???????????? | | ??????????????????????## ##### #???????????? | | ?????????????????????## ; ;# ##???????????? | | ??????????????#?????## #;;; ; ##????????????? | | ??????????????# ##?## #; ;##?????????????? | | ??????????????# ## #; #?????????????? | | ??????????????# #?????????????? | | ??????????????## ; #?????????????? | | ???????????????#### #?????????????? | | ?????????????????#### ##????????????? | | ?????????????????#" #????????????? | | ?????????????????# R ; #????????????? | | ?????????????????# ##????????????? | | ?????????????????#" @ ;#?????????????? | | ?????????????????#" " ;;#?????????????? | | ?????????????????#" " R ;# #??????????? | | ?????????????????#####<###### R #??????????? | | ?????????????????????###????# ##??????????? | | ???????????????????????????? #???????????? | | ???????????????????????????? ## #???????????? | | ??????????????????????????? ##?# #???????????? | | ??????????????????????????? #??? #???????????? | | ??????????????????????????? #???###???????????? | | ?????????????????????????? ?????????????????? | | ?????????????????????????? ?????????????????? | | ??????????????????????????? ?????????????????? | | ???????????????????????????? ?????????????????? | | ?????????????????????????????????????????????????? | | ?????????????????????????????????????????????????? | | ?????????????????????????????????????????????????? | | ?????????????????????????????????????????????????? | | ?????????????????????????????????????????????????? | | ?????????????????????????????????????????????????? | | ?????????????????????????????????????????????????? | | ?????????????????????????????????????????????????? | | ?????????????????????????????????????????????????? | | ?????????????????????????????????????????????????? | | ?????????????????????????????????????????????????? | +----------------------------------------------------+ Best States ------------- Heat Dissipation 25 Energy Generation 10 Energy Capacity 250 Matter Stores 300 Matter Capacity 300 Sight Range 16 Terrain Scan Density 10 Evasion (%) 50 Item Schematics ----------------- None Robot Schematics ------------------ None Fabricated ------------ Nothing Repaired ---------- Nothing Alien Tech Used ----------------- None Achievements -------------- None Challenges ------------ None Game ------ Seed MissileWeightConstruct Manual? 0 Play Time 00:08:57 Cumulative 168.6 hours Start 2025.05.31 @ 20:06:40 End 2025.05.31 @ 20:19:26 Sessions 1 Manual Loads 0 Difficulty Rogue Special Mode None Game No. 258 Rogue 255 Adventurer 3 Explorer 0 Win Type - Total 1 Types 1/0/0/0/0/0/0/0/0/0 Lore% 57 Gallery% 57 Achievement% 45 Wizard Run 0 Options --------- Layout 0 ASCII 0 Keyboard 0 Movement Mouse Keybinds 0 Fullscreen 2 Font 18/SmallcapsGlow Map View 76x50 Zoom Use 0% Tactical HUD 1 Map Filters NONE Filters NONE Steam 1 RUN: 5a67a0b7-d196-42cc-b56c-b7e4bd55f74f